bitfinex-derivatives/quotes_SOLF0:USTF0_20230105
["timestamp","ask_amount","ask_price","bid_price","bid_amount"]
[1672892245914,0.06525385,13.505,13.497,10.0]
[1672892246119,0.06525385,13.505,13.498,222.313]
[1672892246330,0.06525385,13.505,13.499,10.0]
[1672892246640,0.06525385,13.505,13.498,74.104]
[1672892246850,0.06525385,13.505,13.496,0.06792392]
[1672892246851,74.24525385,13.505,13.499,10.0]
[1672892247172,73.95,13.501,13.496,0.06792392]
[1672892247483,10.0,13.504,13.496,0.06792392]
[1672892247484,74.29,13.498,13.496,0.06792392]
[1672892247695,74.29,13.498,13.493,74.129]
[1672892248533,74.29,13.498,13.497,37.055]
[1672892249268,10.0,13.497,13.492,0.06153623]
[1672892249482,74.29,13.493,13.492,37.12953623]
[1672892249686,74.29,13.493,13.488,0.06472245]
[1672892249892,74.29,13.493,13.486,0.06257405]
[1672892250533,74.29,13.493,13.488,37.079]
[1672892252212,74.29,13.489,13.486,0.06257405]
[1672892252423,10.0,13.488,13.483,0.06370009]
[1672892252633,74.05,13.485,13.481,0.07102372]
[1672892252846,74.05,13.485,13.483,37.091]
[1672892253057,74.05,13.485,13.481,10.0]
[1672892253479,74.05,13.485,13.48,74.202]
[1672892253787,74.29,13.488,13.482,37.094]
[1672892253999,0.06060787,13.489,13.482,37.094]
[1672892254210,0.06060787,13.489,13.483,10.0]
[1672892254415,0.06060787,13.489,13.481,10.0]
[1672892254627,0.06060787,13.489,13.479,0.0708888]
[1672892255274,0.06060787,13.489,13.485,10.0]
[1672892255475,74.29,13.489,13.482,0.06892933]
[1672892255682,10.0,13.488,13.481,0.0681403]
[1672892255892,10.0,13.488,13.48,0.06432786]
[1672892256095,74.05,13.485,13.481,37.098]
[1672892256305,10.0,13.484,13.478,0.06034798]
[1672892256627,74.05,13.485,13.476,0.06964455]
[1672892256837,74.11447532,13.485,13.476,0.06964455]
[1672892257365,10.0,13.484,13.478,37.105]
[1672892257677,74.29,13.482,13.478,37.105]
[1672892257889,10.0,13.481,13.476,0.06964455]
[1672892258512,47.099,13.481,13.476,37.18164455]
[1672892259044,47.099,13.481,13.476,0.06964455]
[1672892259247,10.0,13.481,13.476,0.06964455]
[1672892259781,47.1,13.481,13.476,0.06964455]
[1672892260197,74.29,13.478,13.476,0.06964455]
[1672892260511,10.0,13.477,13.472,0.06133293]
[1672892260726,74.29,13.472,13.47,0.06239905]
[1672892260930,74.29,13.472,13.466,0.07096036]
[1672892261141,74.05,13.469,13.464,0.06382525]
[1672892261351,111.184,13.469,13.462,0.06603865]
[1672892261557,111.184,13.469,13.458,111.481]
[1672892261558,111.184,13.469,13.461,0.07120033]
[1672892261770,0.06277724,13.47,13.455,10.0]
[1672892261771,0.06324249,13.47,13.46,0.06150594]
[1672892261984,118.9015,13.475,13.461,111.462]
[1672892262197,10.0,13.474,13.463,0.06059377]
[1672892262406,0.06902016,13.473,13.463,0.06059377]
[1672892263456,0.06902016,13.473,13.465,37.14]
[1672892263666,0.06902016,13.473,13.463,0.06059377]
[1672892263667,73.95,13.471,13.463,0.06059377]
[1672892263981,73.95,13.465,13.463,0.06059377]
[1672892264192,10.0,13.464,13.459,0.07099245]
[1672892264404,89.8094,13.464,13.457,37.2316731]
[1672892264614,89.8094,13.464,13.453,74.351]
[1672892264615,37.148,13.464,13.456,0.06153072]
[1672892265564,10.0,13.463,13.456,0.06153072]
[1672892265878,37.152,13.462,13.456,0.06153072]
[1672892266298,47.155,13.461,13.456,0.06153072]
[1672892267350,74.29,13.457,13.456,0.06153072]
[1672892267556,111.455,13.457,13.452,0.06734212]
[1672892267767,74.29,13.457,13.45,0.06859104]
[1672892267982,111.455,13.457,13.449,0.06489967]
[1672892268295,73.98,13.454,13.448,0.06697451]
[1672892268506,37.18,13.452,13.446,0.06444598]
[1672892268709,54.02274184,13.456,13.446,0.06444598]
[1672892268710,74.05,13.451,13.446,0.06444598]
[1672892268921,0.17337356,13.446,13.44,10.0]
[1672892269337,0.17337356,13.446,13.436,10.0]
[1672892269549,0.17337356,13.446,13.437,13.67409151]
[1672892269763,0.17337356,13.446,13.438,10.0]
[1672892269970,0.17337356,13.446,13.441,10.0]
[1672892270609,0.17337356,13.446,13.442,13.67409151]
[1672892271029,0.17337356,13.446,13.443,37.203]
[1672892273653,0.17337356,13.446,13.443,111.611]
[1672892275865,0.17337356,13.446,13.444,13.68053041]
[1672892276073,0.00337356,13.446,13.445,10.0]
[1672892276386,43.9623,13.456,13.445,10.0]
[1672892276593,37.152,13.462,13.445,47.198]
[1672892276809,185.693,13.469,13.446,13.68053041]
[1672892277027,99.8472,13.468,13.446,13.68053041]
[1672892277231,0.06429691,13.462,13.452,0.06002404]
[1672892277443,0.06802089,13.462,13.452,0.06800626]
[1672892277761,0.06802089,13.462,13.452,111.59700626]
[1672892278174,0.06802089,13.462,13.453,10.0]
[1672892278805,37.22002089,13.462,13.455,37.169]
[1672892279017,10.0,13.461,13.455,37.169]
[1672892279648,0.06802089,13.462,13.455,37.169]
[1672892280386,0.06802089,13.462,13.455,111.511]
[1672892281334,37.22002089,13.462,13.455,37.169]
[1672892282067,37.22002089,13.462,13.452,74.42500626]
[1672892282383,121.446,13.461,13.452,0.06800626]
[1672892282699,10.0,13.46,13.452,0.06800626]
[1672892282911,74.29,13.461,13.452,111.60200626]
[1672892283116,74.29,13.461,13.452,37.24400626]
[1672892283852,73.98,13.454,13.452,0.00339339]
[1672892284063,73.98,13.454,13.444,10.0]
[1672892284910,74.05000873,13.454,13.444,10.07078611]
[1672892285216,0.07000873,13.454,13.448,10.0]
[1672892286270,0.07000873,13.454,13.45,10.0]
[1672892286477,10.06163561,13.457,13.45,10.0]
[1672892286688,10.06163561,13.457,13.447,10.06429474]
[1672892286900,10.06163561,13.457,13.447,0.06429474]
[1672892287109,10.0,13.455,13.447,0.06429474]
[1672892287323,10.0,13.45,13.447,0.06429474]
[1672892287532,10.0,13.45,13.444,0.06435423]
[1672892287737,74.18,13.451,13.442,0.07055282]
[1672892287949,74.25107036,13.451,13.442,0.06360406]
[1672892288373,10.0,13.45,13.444,37.201]
[1672892288796,74.25107036,13.451,13.444,37.201]
[1672892289633,37.187,13.45,13.442,37.26860406]
[1672892289952,37.187,13.45,13.442,0.06360406]
[1672892290163,37.187,13.45,13.443,13.68243837]
[1672892290366,74.25107036,13.451,13.443,13.68243837]
[1672892290367,47.189,13.449,13.443,13.68243837]
[1672892290575,47.189,13.449,13.442,13.74604243]
[1672892291000,10.0,13.446,13.442,0.06360406]
[1672892291205,10.0,13.446,13.439,10.06176929]
[1672892291415,10.0,13.446,13.439,0.06176929]
[1672892291626,47.207,13.442,13.439,0.06176929]
[1672892291846,47.207,13.442,13.436,0.07008717]
[1672892292158,10.0,13.441,13.434,0.06656911]
[1672892292371,37.213,13.44,13.434,37.226]
[1672892292578,0.06236243,13.442,13.435,10.0]
[1672892293105,0.06236243,13.442,13.436,13.69063563]
[1672892293311,0.06236243,13.442,13.437,10.0]
[1672892293526,0.06236243,13.442,13.437,121.661]
[1672892293946,0.06236243,13.442,13.438,13.69063563]
[1672892294158,0.06051228,13.445,13.439,10.0]
[1672892294361,0.0606631,13.447,13.439,47.214]
[1672892294578,0.06357361,13.448,13.439,47.214]
[1672892294893,0.06357361,13.448,13.44,13.69063563]
[1672892295209,55.73,13.458,13.444,10.0]
[1672892295410,10.0,13.458,13.444,10.0]
[1672892295625,10.0,13.458,13.444,111.6]
[1672892295836,65.73,13.458,13.444,37.2]
[1672892296261,74.05,13.452,13.446,0.06080398]
[1672892296467,47.182,13.451,13.433,50.0]
[1672892296683,10.0,13.45,13.442,37.204]
[1672892296892,111.231,13.452,13.443,10.0]
[1672892297413,111.231,13.452,13.443,10.06275456]
[1672892297626,111.29882986,13.452,13.443,10.06275456]
[1672892297837,111.29882986,13.452,13.443,0.06275456]
[1672892298366,111.29882986,13.452,13.445,111.594]
[1672892298569,111.29882986,13.452,13.446,10.0]
[1672892298774,111.29882986,13.452,13.445,37.197]
[1672892299941,111.29882986,13.452,13.447,37.19]
[1672892300155,74.11782986,13.452,13.447,37.19]
[1672892300362,74.11782986,13.452,13.443,0.06275456]
[1672892300779,111.29782986,13.452,13.443,0.06275456]
[1672892300989,0.06782986,13.452,13.445,37.198]
[1672892301203,0.06782986,13.452,13.446,10.0]
[1672892301727,73.95,13.451,13.443,0.06275456]
[1672892301937,47.186,13.45,13.443,0.06275456]
[1672892302254,37.186,13.45,13.444,37.199]
[1672892303410,111.134,13.451,13.444,37.199]
[1672892304461,0.06782986,13.452,13.445,10.0]
[1672892306036,0.06782986,13.452,13.447,111.577]
[1672892306252,74.29,13.462,13.448,10.0]
[1672892306562,74.29,13.462,13.448,23.67717293]
[1672892306974,74.29,13.462,13.453,10.0]
[1672892307187,74.35851704,13.462,13.453,10.06864823]
[1672892308029,74.35851704,13.462,13.455,111.507]
[1672892308347,0.06851704,13.462,13.456,10.0]
[1672892309180,0.06851704,13.462,13.457,111.489]
[1672892309499,0.06851704,13.462,13.458,10.0]
[1672892309709,74.35219245,13.465,13.458,10.0]
[1672892310238,74.35219245,13.465,13.457,0.06360097]
[1672892310449,74.35219245,13.465,13.459,111.479]
[1672892311394,73.98,13.462,13.458,37.162]
[1672892311917,47.155,13.461,13.457,0.06360097]
[1672892312121,47.155,13.461,13.454,0.06600685]
[1672892312327,47.155,13.461,13.453,0.07028686]
[1672892312546,37.155,13.461,13.452,0.06292356]
[1672892312751,37.21957005,13.461,13.455,37.168]
[1672892312963,37.163,13.458,13.452,0.06736003]
[1672892314014,74.29,13.455,13.44,10.0]
[1672892314429,10.0,13.454,13.44,10.0]
[1672892314642,37.177,13.453,13.44,10.0]
[1672892315071,0.06512513,13.451,13.445,10.0]
[1672892315279,37.183,13.451,13.445,10.0]
[1672892315482,0.06998733,13.453,13.444,37.201]
[1672892315694,74.16,13.451,13.443,0.06740762]
[1672892315906,10.0,13.45,13.443,0.06740762]
[1672892316328,84.16,13.451,13.443,0.06740762]
[1672892316646,74.16,13.451,13.443,0.06740762]
[1672892316958,37.188,13.449,13.443,37.26840762]
[1672892317170,74.16,13.451,13.443,37.26840762]
[1672892317894,37.187,13.45,13.443,111.67640762]
[1672892318108,37.187,13.45,13.443,37.26840762]
[1672892318320,10.0,13.449,13.443,37.26840762]
[1672892318532,37.191,13.448,13.443,37.26840762]
[1672892319587,37.191,13.448,13.443,0.06740762]
[1672892320110,111.571,13.448,13.443,0.06740762]
[1672892321999,0.0621775,13.45,13.443,0.06740762]
[1672892322213,0.0621775,13.45,13.443,37.26940762]
[1672892322626,0.0621775,13.45,13.444,10.0]
[1672892323996,0.0621775,13.45,13.445,37.196]
[1672892324212,0.0621775,13.45,13.446,10.0]
[1672892324516,37.2404847,13.453,13.445,10.0]
[1672892324835,0.0624847,13.453,13.447,10.0]
[1672892325036,0.0624847,13.453,13.447,47.192]
[1672892327358,0.0624847,13.453,13.447,37.192]
[1672892328412,37.2394847,13.453,13.443,10.06740762]
[1672892328934,10.0,13.452,13.44,10.0]
[1672892329147,47.181,13.452,13.446,37.195]
[1672892329353,37.181,13.452,13.447,10.0]
[1672892329979,37.181,13.452,13.445,74.46707081]
[1672892330194,37.2404847,13.453,13.445,0.07007081]
[1672892330398,0.0624847,13.453,13.445,0.07007081]
[1672892330929,37.179,13.452,13.445,0.07007081]
[1672892333352,0.0624847,13.453,13.445,37.26607081]
[1672892333666,0.0624847,13.453,13.446,10.0]
[1672892334506,0.0624847,13.453,13.448,37.19]
[1672892334820,0.0624847,13.453,13.449,10.0]
[1672892335026,111.461,13.455,13.448,10.0]
[1672892336081,111.461,13.455,13.446,10.0]
[1672892336294,111.461,13.455,13.445,0.07007081]
[1672892336926,111.461,13.455,13.45,37.184]
[1672892337553,74.29,13.455,13.45,37.184]
[1672892338186,51.95,13.453,13.45,37.184]
[1672892341013,52.01103775,13.456,13.45,37.184]
[1672892341230,10.0,13.466,13.451,10.0]
[1672892341440,37.156,13.461,13.451,10.0]
[1672892341651,74.305,13.462,13.447,10.0]
[1672892341862,10.0,13.46,13.447,10.0]
[1672892342067,51.68,13.454,13.45,37.182]
[1672892342280,0.07073145,13.457,13.45,111.546]
[1672892342492,51.95,13.452,13.45,37.182]
[1672892345018,51.95,13.452,13.45,111.551]
[1672892345334,51.95,13.452,13.45,37.182]
[1672892346065,51.95,13.452,13.449,37.186]
[1672892347116,51.95,13.45,13.449,37.186]
[1672892347541,51.95,13.45,13.447,74.382]
[1672892348482,51.95,13.45,13.447,37.191]
[1672892348698,51.95,13.45,13.446,0.06055577]
[1672892348909,51.8,13.447,13.443,0.06692753]
[1672892349119,10.0,13.446,13.44,0.0623247]
[1672892349436,10.0,13.446,13.438,0.06035862]
[1672892349748,51.95,13.445,13.441,111.621]
[1672892350485,51.8,13.442,13.438,0.06035862]
[1672892350694,51.8,13.442,13.435,0.06999086]
[1672892350902,51.8,13.442,13.434,0.06821626]
[1672892351111,51.8,13.442,13.438,37.217]
[1672892353740,51.8,13.442,13.438,36.97770695]
[1672892355209,51.72438468,13.445,13.439,10.0]
[1672892355832,51.72438468,13.445,13.437,10.0]
[1672892356049,51.72438468,13.445,13.44,111.631]
[1672892356260,51.72438468,13.445,13.441,10.0]
[1672892356471,51.66,13.445,13.441,10.0]
[1672892357102,51.8,13.447,13.442,37.206]
[1672892357310,51.8,13.447,13.443,10.0]
[1672892357523,51.8,13.447,13.442,37.206]
[1672892357935,0.07139703,13.448,13.442,37.206]
[1672892357936,44.57,13.445,13.442,37.206]
[1672892358884,0.07139703,13.448,13.444,37.2]
[1672892359098,44.57,13.445,13.441,0.06512674]
[1672892359411,44.57,13.442,13.438,0.06437105]
[1672892359729,44.57,13.442,13.435,0.06282472]
[1672892359939,44.28,13.439,13.435,0.06282472]
[1672892360149,44.28,13.439,13.434,10.0]
[1672892360358,44.28,13.439,13.432,0.06214534]
[1672892360565,44.28,13.439,13.437,37.22]
[1672892366345,44.28,13.439,13.437,37.04223659]
[1672892366768,0.07130377,13.442,13.438,10.0]
[1672892366977,44.14,13.444,13.438,10.0]
[1672892367193,44.5986133,13.446,13.438,10.0]
[1672892367607,44.5986133,13.446,13.439,111.639]
[1672892367814,44.5986133,13.446,13.44,10.0]
[1672892368869,44.5986133,13.446,13.441,37.207]
[1672892369077,44.5986133,13.446,13.442,10.0]
[1672892369286,44.53,13.446,13.442,10.0]
[1672892369925,44.34015004,13.449,13.442,10.0]
[1672892370128,44.57,13.454,13.444,50.0]
[1672892370343,44.57,13.454,13.445,10.0]
[1672892371293,44.63142669,13.454,13.447,223.158]
[1672892371498,44.53,13.452,13.447,111.579]
[1672892371708,44.57,13.449,13.447,111.579]
[1672892371915,44.14,13.448,13.447,37.193]
[1672892372131,44.14,13.448,13.445,0.06521752]
[1672892372342,44.14,13.448,13.446,37.194]
[1672892374543,44.14,13.448,13.443,74.407]
[1672892374864,44.28,13.444,13.426,44.57]
[1672892375073,44.57,13.441,13.429,223.455]
[1672892375281,44.57,13.441,13.43,10.0]
[1672892375802,10.06404277,13.44,13.431,0.07091129]
[1672892376016,0.06404277,13.44,13.434,10.0]
[1672892376859,0.06404277,13.44,13.433,10.0]
[1672892377175,0.06404277,13.44,13.435,111.672]
[1672892377388,0.06404277,13.44,13.436,10.0]
[1672892377597,44.57,13.441,13.436,10.0]
[1672892377910,44.57,13.441,13.435,37.224]
[1672892378123,44.57,13.441,13.437,37.22]
[1672892380749,44.53,13.438,13.437,37.22]
[1672892382112,44.53,13.438,13.434,0.0681191]
[1672892382324,44.28,13.435,13.431,0.06158956]
[1672892382844,44.28,13.435,13.428,0.07057706]
[1672892383059,44.28,13.435,13.432,37.232]
[1672892384216,44.57,13.433,13.427,0.06044082]
[1672892385264,44.57,13.433,13.428,37.243]
[1672892386637,10.0,13.432,13.428,37.243]
[1672892386838,44.28,13.433,13.428,37.243]
[1672892387158,44.63293451,13.436,13.429,10.0]
[1672892387369,44.63293451,13.436,13.43,111.718]
[1672892387787,44.63293451,13.436,13.431,10.0]
[1672892388423,0.06293451,13.436,13.432,111.702]
[1672892388631,44.63597259,13.439,13.433,10.0]
[1672892389362,44.63597259,13.439,13.434,111.684]
[1672892389577,44.63597259,13.439,13.435,10.0]
[1672892389788,44.57,13.439,13.435,10.0]
[1672892390211,44.57,13.439,13.434,37.226]
[1672892390418,44.57,13.436,13.434,37.226]
[1672892390734,44.57,13.436,13.431,121.77320619]
[1672892391048,44.57,13.436,13.431,111.77320619]
[1672892391890,44.57,13.436,13.432,37.233]
[1672892392101,44.57,13.436,13.433,10.0]
[1672892392517,44.57,13.434,13.431,0.06620619]
[1672892392832,44.57,13.433,13.428,10.06754321]
[1672892393037,42.7055,13.437,13.428,10.06754321]
[1672892393038,44.14,13.431,13.429,37.241]
[1672892396615,12.0268,13.429,13.426,0.06592547]
[1672892396931,44.28,13.43,13.424,10.0]
[1672892397353,44.28,13.43,13.424,60.0]
[1672892397563,0.06500894,13.432,13.424,60.0]
[1672892397775,0.06500894,13.432,13.425,111.762]
[1672892397984,0.06500894,13.432,13.426,10.0]
[1672892399352,0.06500894,13.432,13.427,111.738]
[1672892399563,0.06500894,13.432,13.428,10.0]
[1672892399773,44.63552616,13.435,13.428,10.0]
[1672892400406,44.63552616,13.435,13.429,111.726]
[1672892400612,44.57,13.431,13.43,10.0]
[1672892401450,44.57,13.431,13.43,47.24]
[1672892401661,44.57,13.431,13.43,37.24]
[1672892402181,44.57,13.433,13.43,37.24]
[1672892404396,44.14,13.431,13.43,37.24]
[1672892406078,44.14,13.431,13.428,37.245]
[1672892406287,0.06552616,13.435,13.426,0.07063817]
[1672892406288,44.14,13.429,13.426,0.07063817]
[1672892406497,44.14,13.429,13.425,111.758]
[1672892407235,44.14,13.429,13.427,37.247]
[1672892407445,44.14,13.429,13.428,10.0]
[1672892407655,44.57,13.431,13.428,10.0]
[1672892408066,44.57,13.431,13.426,10.0]
[1672892408391,44.57,13.431,13.428,37.245]
[1672892408600,44.57,13.431,13.429,10.0]
[1672892409225,44.57,13.431,13.429,37.241]
[1672892409550,44.57,13.431,13.429,37.07330471]
[1672892410489,44.57,13.43,13.429,37.07330471]
[1672892411117,44.57,13.43,13.425,10.06386904]
[1672892411330,44.57,13.431,13.425,10.06386904]
[1672892411535,44.57,13.431,13.429,111.729]
[1672892411952,44.57,13.437,13.43,10.0]
[1672892412591,44.57,13.437,13.431,111.709]
[1672892412803,44.57,13.437,13.432,10.0]
[1672892413114,44.57,13.433,13.431,37.236]
[1672892414062,44.57,13.433,13.432,37.234]
[1672892415427,44.53,13.435,13.432,37.234]
[1672892415646,44.53,13.435,13.432,47.234]
[1672892416583,44.53,13.435,13.432,37.234]
[1672892417429,0.06702891,13.437,13.434,111.685]
[1672892417628,44.14,13.439,13.435,10.0]
[1672892418582,44.14,13.439,13.437,10.0]
[1672892419317,44.28,13.441,13.437,10.0]
[1672892419531,44.28,13.441,13.438,111.654]
[1672892419847,44.28,13.441,13.439,10.0]
[1672892420685,0.06382683,13.446,13.44,111.637]
[1672892420895,0.07071307,13.448,13.441,10.0]
[1672892421113,44.28,13.447,13.441,10.0]
[1672892421633,44.28,13.447,13.443,111.61]
[1672892421840,44.28,13.447,13.444,10.0]
[1672892422465,0.07071307,13.448,13.444,10.0]
[1672892422676,44.28,13.449,13.445,111.595]
[1672892423102,44.28,13.449,13.446,10.0]
[1672892423526,44.28,13.449,13.444,10.0]
[1672892423839,44.28,13.449,13.443,111.608]
[1672892424046,44.28,13.449,13.447,37.193]
[1672892424257,44.28,13.449,13.447,111.579]
[1672892426359,44.57,13.448,13.447,37.193]
[1672892428042,44.57,13.45,13.447,37.193]
[1672892428883,44.57,13.45,13.447,111.579]
[1672892430782,0.06649744,13.452,13.447,111.579]
[1672892430783,44.63649744,13.452,13.447,111.579]
[1672892431518,44.57,13.46,13.448,10.0]
[1672892431939,44.57,13.46,13.451,10.0]
[1672892432352,44.57,13.458,13.451,10.0]
[1672892432995,44.28,13.453,13.45,0.06533783]
[1672892433203,44.53,13.451,13.447,0.06202509]
[1672892433408,44.53,13.451,13.446,10.0]
[1672892433934,44.63827795,13.453,13.45,223.106]
[1672892434144,44.57,13.453,13.45,223.106]
[1672892434353,44.57,13.453,13.451,10.0]
[1672892434566,44.57,13.453,13.45,74.369]
[1672892434775,44.57,13.455,13.451,10.0]
[1672892434989,0.06431505,13.456,13.452,111.537]
[1672892435199,44.57,13.457,13.453,10.0]
[1672892435830,44.34644191,13.459,13.451,10.0]
[1672892436456,44.34644191,13.459,13.454,111.519]
[1672892438239,44.34644191,13.459,13.455,10.0]
[1672892438452,0.06447717,13.462,13.455,10.0]
[1672892438659,44.6375763,13.463,13.455,10.0]
[1672892438876,44.6375763,13.463,13.459,10.0]
[1672892439082,44.57,13.463,13.459,10.0]
[1672892439506,44.57,13.463,13.458,37.161]
[1672892439716,44.57,13.463,13.46,37.156]
[1672892440558,44.57,13.461,13.46,37.156]
[1672892440764,44.57,13.461,13.457,0.06478338]
[1672892440765,44.57,13.461,13.458,37.162]
[1672892440972,44.53,13.459,13.458,37.162]
[1672892445181,44.53,13.459,13.458,14.77518979]
[1672892445392,44.53,13.459,13.452,111.59545728]
[1672892445706,44.57,13.456,13.452,111.59545728]
[1672892446022,44.57,13.456,13.453,111.528]
[1672892447071,44.57,13.454,13.453,111.528]
[1672892451592,20.0,13.453,13.449,0.06328883]
[1672892451802,44.57,13.45,13.446,0.06992252]
[1672892452119,44.28,13.447,13.443,0.06883807]
[1672892452324,44.28,13.447,13.44,0.07058536]
[1672892452532,44.28,13.447,13.444,111.601]
[1672892453391,44.53,13.445,13.444,111.601]
[1672892454749,44.53,13.445,13.444,37.2]
[1672892455167,44.53,13.445,13.441,74.48619511]
[1672892455379,44.57,13.442,13.441,74.415]
[1672892456218,44.57,13.442,13.441,111.624]
[1672892456426,44.57,13.442,13.441,37.209]
[1672892457479,44.57,13.442,13.438,0.06460823]
[1672892457695,44.57,13.439,13.435,111.74118688]
[1672892457904,44.28,13.436,13.435,111.676]
[1672892458120,44.57,13.437,13.435,111.676]
[1672892458429,44.57,13.437,13.435,148.902]
[1672892462631,44.28,13.436,13.435,148.902]
[1672892462842,44.28,13.436,13.435,37.226]
[1672892465042,44.28,13.436,13.432,74.466]
[1672892466101,44.28,13.436,13.433,37.231]
[1672892466412,44.28,13.434,13.433,37.12263725]
[1672892471872,44.28,13.434,13.431,0.06408519]
[1672892472086,44.57,13.438,13.434,10.0]
[1672892472298,44.57,13.438,13.431,74.53472316]
[1672892472508,44.57,13.436,13.431,74.53472316]
[1672892473143,44.57,13.436,13.435,37.225]
[1672892475657,44.57,13.436,13.433,37.23]
[1672892475875,44.57,13.434,13.433,37.23]
[1672892479233,44.57,13.434,13.433,37.00075727]
[1672892479649,30.74,13.433,13.431,0.06372316]
[1672892479858,81.804,13.432,13.427,0.06546626]
[1672892480180,44.57,13.43,13.426,10.0]
[1672892481127,44.57,13.43,13.428,10.0]
[1672892482170,44.57,13.43,13.427,37.247]
[1672892482494,44.57,13.43,13.429,37.243]
[1672892483966,44.57,13.43,13.425,10.07065024]
[1672892484388,44.57,13.43,13.425,0.07065024]
[1672892485015,44.57,13.43,13.427,37.247]
[1672892485746,44.14,13.429,13.427,37.247]
[1672892489639,44.57,13.431,13.427,37.247]
[1672892490163,44.57,13.431,13.427,111.744]
[1672892492375,44.57,13.431,13.427,111.55668931]
[1672892492583,44.57,13.431,13.427,37.05968931]
[1672892496574,44.57,13.431,13.425,0.07065024]
[1672892496575,44.57,13.428,13.425,0.07065024]
[1672892496892,44.53,13.426,13.422,10.07006107]
[1672892497101,44.53,13.426,13.422,10.0]
[1672892497732,44.53,13.426,13.42,10.0]
[1672892498047,14.9,13.426,13.423,111.776]
[1672892499622,14.9,13.426,13.423,37.259]
[1672892500354,14.9,13.426,13.42,74.53]
[1672892500355,52.152,13.426,13.42,74.53]
[1672892500565,14.9,13.421,13.419,0.06511032]
[1672892500772,14.9,13.421,13.391,14.77]
[1672892500773,69.6,13.42,13.391,14.77]
[1672892500987,69.6,13.42,13.394,50.0]
[1672892500988,110.2481,13.42,13.394,50.0]
[1672892501198,44.3581,13.419,13.404,50.0]
[1672892501508,10.0,13.418,13.405,10.0]
[1672892501723,14.9,13.405,13.395,134.3536956]
[1672892501929,14.9,13.404,13.396,10.0]
[1672892502458,0.06013813,13.405,13.398,74.656]
[1672892502459,14.9,13.4,13.398,74.656]
[1672892502874,14.9,13.399,13.395,0.06437969]
[1672892503091,14.9,13.397,13.394,50.0]
[1672892503300,0.06239671,13.402,13.395,13.72668087]
[1672892503621,14.9,13.396,13.395,13.72668087]
[1672892503825,14.9,13.396,13.391,0.06928884]
[1672892504037,14.9,13.392,13.389,0.06938498]
[1672892504244,14.9,13.392,13.387,13.73387207]
[1672892504456,14.9,13.392,13.388,37.355]
[1672892504662,14.9,13.389,13.387,13.73387207]
[1672892504983,14.9,13.389,13.384,13.73387207]
[1672892505193,14.9,13.386,13.384,13.73387207]
[1672892505502,14.87,13.39,13.385,10.0]
[1672892505709,14.93217393,13.391,13.385,47.365]
[1672892505925,14.93217393,13.391,13.386,13.73387207]
[1672892506136,14.93217393,13.391,13.387,10.0]
[1672892506448,14.9,13.388,13.386,13.73387207]
[1672892506665,14.9,13.387,13.386,13.73387207]